[Event "Titled Tuesday Blitz October 19 2021"]
[White "Onyshchuk, Volodymyr"]
[Black "Sukovic, Andrej"]
[WhiteFideId "14114038"]
[BlackFideId "16502310"]
[WhiteElo "2603"]
[BlackElo "2355"]
[Result "1-0"]
[Round "04"]
[TimeControl "180+1"]
[Date "2021.10.19"]
[WhiteClock "0:00:16"]
[BlackClock "0:00:02"]

1. Nf3 {[%clk 0:03:00]}  Nf6 {[%clk 0:02:59]} 2. g3 {[%clk 0:03:01]}  g6 {[%clk 0:03:00]} 3. Bg2 {[%clk 0:03:01]}  Bg7 {[%clk 0:03:01]} 4. O-O {[%clk 0:03:01]}  d6 {[%clk 0:03:02]} 5. d3 {[%clk 0:03:00]}  O-O {[%clk 0:03:03]} 6. c4 {[%clk 0:03:00]}  c5 {[%clk 0:03:03]} 7. Nc3 {[%clk 0:03:01]}  Nc6 {[%clk 0:03:04]} 8. a3 {[%clk 0:02:59]}  a6 {[%clk 0:03:04]} 9. Rb1 {[%clk 0:02:59]}  Rb8 {[%clk 0:03:04]} 10. b4 {[%clk 0:02:49]}  cxb4 {[%clk 0:03:05]} 11. axb4 {[%clk 0:02:49]}  b5 {[%clk 0:03:06]} 12. Ba3 {[%clk 0:02:33]}  Bf5 {[%clk 0:02:58]} 13. Nd2 {[%clk 0:02:31]}  Qd7 {[%clk 0:02:53]} 14. Re1 {[%clk 0:02:26]}  Bh3 {[%clk 0:02:53]} 15. Bh1 {[%clk 0:02:23]}  Rfc8 {[%clk 0:02:50]} 16. Nce4 {[%clk 0:02:20]}  Nxe4 {[%clk 0:02:44]} 17. Nxe4 {[%clk 0:02:20]}  bxc4 {[%clk 0:02:01]} 18. dxc4 {[%clk 0:02:20]}  Ne5 {[%clk 0:01:59]} 19. c5 {[%clk 0:02:20]}  Nc4 {[%clk 0:01:43]} 20. Qd3 {[%clk 0:02:03]}  Nxa3 {[%clk 0:01:31]} 21. Qxa3 {[%clk 0:02:02]}  Bf5 {[%clk 0:01:23]} 22. Rbc1 {[%clk 0:01:46]}  Bxe4 {[%clk 0:01:17]} 23. Bxe4 {[%clk 0:01:45]}  dxc5 {[%clk 0:01:17]} 24. Rxc5 {[%clk 0:01:41]}  Qd2 {[%clk 0:00:43]} 25. Qc1 {[%clk 0:00:55]}  Qd7 {[%clk 0:00:15]} 26. Rd1 {[%clk 0:00:54]}  Rxc5 {[%clk 0:00:14]} 27. bxc5 {[%clk 0:00:52]}  Qe6 {[%clk 0:00:12]} 28. Bf3 {[%clk 0:00:51]}  a5 {[%clk 0:00:10]} 29. c6 {[%clk 0:00:50]}  Be5 {[%clk 0:00:10]} 30. Kg2 {[%clk 0:00:26]}  Kg7 {[%clk 0:00:10]} 31. Qa3 {[%clk 0:00:22]}  Bc7 {[%clk 0:00:06]} 32. Rd7 {[%clk 0:00:22]}  Bd6 {[%clk 0:00:01]} 33. Qxa5 {[%clk 0:00:21]}  Rc8 {[%clk 0:00:02]} 34. Qa6 {[%clk 0:00:19]}  Qf6 {[%clk 0:00:02]} 35. Qxc8 {[%clk 0:00:18]}  h5 {[%clk 0:00:02]} 36. c7 {[%clk 0:00:17]}  h4 {[%clk 0:00:02]} 37. Rxd6 {[%clk 0:00:17]}  exd6 {[%clk 0:00:02]} 38. Qg4 {[%clk 0:00:16]} 1-0


[Site "https://www.chess.com"]

[Event "Titled Tuesday Blitz October 19 2021"]
[White "Orlov, Georgi"]
[Black "Holt, Conrad"]
[WhiteFideId "2011271"]
[BlackFideId "2034387"]
[WhiteElo "2555"]
[BlackElo "2586"]
[Result "0-1"]
[Round "04"]
[TimeControl "180+1"]
[Date "2021.10.19"]
[WhiteClock "0:00:34"]
[BlackClock "0:01:31"]

1. d4 {[%clk 0:03:00]}  d5 {[%clk 0:02:58]} 2. Nf3 {[%clk 0:03:00]}  Nf6 {[%clk 0:02:57]} 3. Bf4 {[%clk 0:03:00]}  c5 {[%clk 0:02:57]} 4. e3 {[%clk 0:03:00]}  Nc6 {[%clk 0:02:56]} 5. Nc3 {[%clk 0:02:59]}  Bg4 {[%clk 0:02:53]} 6. Bb5 {[%clk 0:02:50]}  e6 {[%clk 0:02:47]} 7. h3 {[%clk 0:02:49]}  Bxf3 {[%clk 0:02:45]} 8. Qxf3 {[%clk 0:02:48]}  a6 {[%clk 0:02:41]} 9. Bxc6+ {[%clk 0:02:47]}  bxc6 {[%clk 0:02:42]} 10. Be5 {[%clk 0:02:44]}  Nd7 {[%clk 0:02:38]} 11. Bf4 {[%clk 0:02:42]}  Qb6 {[%clk 0:02:34]} 12. Rb1 {[%clk 0:02:40]}  cxd4 {[%clk 0:02:33]} 13. exd4 {[%clk 0:02:39]}  Qxd4 {[%clk 0:02:33]} 14. O-O {[%clk 0:02:38]}  Be7 {[%clk 0:02:33]} 15. Rfe1 {[%clk 0:02:29]}  O-O {[%clk 0:02:31]} 16. Rbd1 {[%clk 0:02:29]}  Qf6 {[%clk 0:02:27]} 17. Qg3 {[%clk 0:02:25]}  Qh4 {[%clk 0:02:21]} 18. Qf3 {[%clk 0:02:19]}  Ra7 {[%clk 0:02:17]} 19. Na4 {[%clk 0:02:17]}  e5 {[%clk 0:02:05]} 20. b3 {[%clk 0:02:12]}  exf4 {[%clk 0:02:03]} 21. c4 {[%clk 0:00:56]}  Bb4 {[%clk 0:01:56]} 22. Re2 {[%clk 0:00:55]}  Qf6 {[%clk 0:01:50]} 23. cxd5 {[%clk 0:00:54]}  Ne5 {[%clk 0:01:49]} 24. Qe4 {[%clk 0:00:53]}  f3 {[%clk 0:01:48]} 25. Rc2 {[%clk 0:00:50]}  fxg2 {[%clk 0:01:43]} 26. Qxb4 {[%clk 0:00:45]}  Nf3+ {[%clk 0:01:43]} 27. Kxg2 {[%clk 0:00:44]}  Qg6+ {[%clk 0:01:43]} 28. Qg4 {[%clk 0:00:43]}  Nh4+ {[%clk 0:01:38]} 29. Kg3 {[%clk 0:00:39]}  Qxc2 {[%clk 0:01:36]} 30. Kxh4 {[%clk 0:00:40]}  Qxf2+ {[%clk 0:01:32]} 31. Qg3 {[%clk 0:00:34]}  g5+ {[%clk 0:01:31]} 0-1


[Site "https://www.chess.com"]

[Event "Titled Tuesday Blitz October 19 2021"]
[White "Palchuk, Andrii"]
[Black "Svane, Frederik"]
[WhiteFideId "14176688"]
[BlackFideId "12923044"]
[WhiteElo "2322"]
[BlackElo "2459"]
[Result "1-0"]
[Round "04"]
[TimeControl "180+1"]
[Date "2021.10.19"]
[WhiteClock "0:01:10"]
[BlackClock "0:00:43"]

1. d4 {[%clk 0:02:48]}  Nf6 {[%clk 0:03:00]} 2. c4 {[%clk 0:02:46]}  e6 {[%clk 0:03:00]} 3. g3 {[%clk 0:02:46]}  d5 {[%clk 0:03:00]} 4. Nf3 {[%clk 0:02:46]}  Bb4+ {[%clk 0:03:00]} 5. Bd2 {[%clk 0:02:44]}  Be7 {[%clk 0:03:00]} 6. Bg2 {[%clk 0:02:44]}  O-O {[%clk 0:03:00]} 7. O-O {[%clk 0:02:45]}  c6 {[%clk 0:03:00]} 8. Qc2 {[%clk 0:02:45]}  b6 {[%clk 0:03:00]} 9. Bf4 {[%clk 0:02:45]}  Bb7 {[%clk 0:03:00]} 10. Rd1 {[%clk 0:02:44]}  Nbd7 {[%clk 0:02:59]} 11. Nbd2 {[%clk 0:02:43]}  Nh5 {[%clk 0:02:58]} 12. Be3 {[%clk 0:02:33]}  f5 {[%clk 0:02:57]} 13. Ne5 {[%clk 0:02:21]}  Nxe5 {[%clk 0:02:50]} 14. dxe5 {[%clk 0:02:22]}  f4 {[%clk 0:02:50]} 15. gxf4 {[%clk 0:02:22]}  Nxf4 {[%clk 0:02:51]} 16. Bxf4 {[%clk 0:02:05]}  Rxf4 {[%clk 0:02:52]} 17. e3 {[%clk 0:02:05]}  Rh4 {[%clk 0:02:27]} 18. Nf3 {[%clk 0:01:59]}  Rh5 {[%clk 0:02:26]} 19. Qe2 {[%clk 0:01:43]}  Qe8 {[%clk 0:02:24]} 20. Nd4 {[%clk 0:01:43]}  Rxe5 {[%clk 0:02:14]} 21. f4 {[%clk 0:01:43]}  Rh5 {[%clk 0:02:07]} 22. Nxe6 {[%clk 0:01:43]}  Bf6 {[%clk 0:02:03]} 23. Nc7 {[%clk 0:01:40]}  Qg6 {[%clk 0:02:03]} 24. Nxa8 {[%clk 0:01:38]}  Bxa8 {[%clk 0:02:03]} 25. cxd5 {[%clk 0:01:37]}  cxd5 {[%clk 0:02:03]} 26. Rac1 {[%clk 0:01:36]}  Qe8 {[%clk 0:01:50]} 27. Qg4 {[%clk 0:01:25]}  Qxe3+ {[%clk 0:01:01]} 28. Kh1 {[%clk 0:01:23]}  Rh4 {[%clk 0:01:01]} 29. Rc8+ {[%clk 0:01:10]}  Kf7 {[%clk 0:01:00]} 30. Rc7+ {[%clk 0:01:07]}  Be7 {[%clk 0:00:47]} 31. Qxh4 {[%clk 0:01:07]}  d4 {[%clk 0:00:42]} 32. Qxe7+ {[%clk 0:01:04]}  Qxe7 {[%clk 0:00:41]} 33. Rxe7+ {[%clk 0:01:05]}  Kxe7 {[%clk 0:00:42]} 34. Bxa8 {[%clk 0:01:06]}  Kd6 {[%clk 0:00:39]} 35. Rxd4+ {[%clk 0:01:07]}  Kc5 {[%clk 0:00:40]} 36. Rd7 {[%clk 0:01:07]}  b5 {[%clk 0:00:39]} 37. Rxg7 {[%clk 0:01:07]}  b4 {[%clk 0:00:40]} 38. Rxh7 {[%clk 0:01:08]}  b3 {[%clk 0:00:41]} 39. axb3 {[%clk 0:01:08]}  a5 {[%clk 0:00:42]} 40. Ra7 {[%clk 0:01:09]}  a4 {[%clk 0:00:42]} 41. Rxa4 {[%clk 0:01:09]}  Kb5 {[%clk 0:00:43]} 42. h4 {[%clk 0:01:10]} 1-0


[Site "https://www.chess.com"]

[Event "Titled Tuesday Blitz October 19 2021"]
[White "Salinas Herrera, Pablo"]
[Black "Obrien, Matthew"]
[WhiteFideId "3407128"]
[BlackFideId "2059150"]
[WhiteElo "2541"]
[BlackElo "2577"]
[Result "1-0"]
[Round "04"]
[TimeControl "180+1"]
[Date "2021.10.19"]
[WhiteClock "0:01:46"]
[BlackClock "0:00:03"]

1. d4 {[%clk 0:03:00]}  Nf6 {[%clk 0:02:55]} 2. Nf3 {[%clk 0:03:00]}  d5 {[%clk 0:02:54]} 3. Bf4 {[%clk 0:03:01]}  c5 {[%clk 0:02:51]} 4. e3 {[%clk 0:03:01]}  Nc6 {[%clk 0:02:49]} 5. Nbd2 {[%clk 0:03:00]}  Nh5 {[%clk 0:02:47]} 6. Be5 {[%clk 0:02:58]}  e6 {[%clk 0:02:38]} 7. c3 {[%clk 0:02:54]}  Nxe5 {[%clk 0:02:33]} 8. Nxe5 {[%clk 0:02:53]}  g6 {[%clk 0:02:33]} 9. Bb5+ {[%clk 0:02:52]}  Ke7 {[%clk 0:02:28]} 10. dxc5 {[%clk 0:02:51]}  f6 {[%clk 0:02:20]} 11. Nef3 {[%clk 0:02:44]}  Kf7 {[%clk 0:02:14]} 12. b4 {[%clk 0:02:43]}  Ng7 {[%clk 0:01:53]} 13. O-O {[%clk 0:02:41]}  Ne8 {[%clk 0:01:49]} 14. e4 {[%clk 0:02:41]}  Nc7 {[%clk 0:01:47]} 15. Ba4 {[%clk 0:02:41]}  Bh6 {[%clk 0:01:42]} 16. Qe2 {[%clk 0:02:39]}  Bd7 {[%clk 0:01:11]} 17. Bb3 {[%clk 0:02:37]}  Kg7 {[%clk 0:01:03]} 18. Rfe1 {[%clk 0:02:35]}  Re8 {[%clk 0:01:01]} 19. a4 {[%clk 0:02:30]}  a6 {[%clk 0:00:53]} 20. c4 {[%clk 0:02:28]}  Bxd2 {[%clk 0:00:45]} 21. Nxd2 {[%clk 0:02:26]}  d4 {[%clk 0:00:43]} 22. e5 {[%clk 0:02:26]}  f5 {[%clk 0:00:43]} 23. Nf3 {[%clk 0:02:26]}  Bc6 {[%clk 0:00:42]} 24. Rad1 {[%clk 0:02:25]}  Bxf3 {[%clk 0:00:15]} 25. Qxf3 {[%clk 0:02:26]}  Qc8 {[%clk 0:00:12]} 26. Rxd4 {[%clk 0:02:24]}  Re7 {[%clk 0:00:10]} 27. Rd6 {[%clk 0:02:24]}  Ne8 {[%clk 0:00:10]} 28. Red1 {[%clk 0:02:22]}  Nxd6 {[%clk 0:00:11]} 29. cxd6 {[%clk 0:02:23]}  Rf7 {[%clk 0:00:10]} 30. a5 {[%clk 0:02:21]}  Qd7 {[%clk 0:00:10]} 31. c5 {[%clk 0:02:21]}  Rc8 {[%clk 0:00:10]} 32. h4 {[%clk 0:02:17]}  Qb5 {[%clk 0:00:10]} 33. Qf4 {[%clk 0:02:15]}  h5 {[%clk 0:00:09]} 34. Bxe6 {[%clk 0:02:15]}  Qa4 {[%clk 0:00:07]} 35. Rd2 {[%clk 0:02:11]}  Rxc5 {[%clk 0:00:07]} 36. Bxf7 {[%clk 0:02:03]}  Kxf7 {[%clk 0:00:04]} 37. d7 {[%clk 0:02:00]}  Rc1+ {[%clk 0:00:03]} 38. Kh2 {[%clk 0:02:00]}  Qa1 {[%clk 0:00:04]} 39. e6+ {[%clk 0:01:48]}  Kg7 {[%clk 0:00:03]} 40. Qd4+ {[%clk 0:01:46]} 1-0


[Site "https://www.chess.com"]

[Event "Titled Tuesday Blitz October 19 2021"]
[White "Samunenkov, Ihor"]
[Black "Praggnanandhaa R"]
[WhiteFideId "14187086"]
[BlackFideId "25059530"]
[WhiteElo "2305"]
[BlackElo "2599"]
[Result "0-1"]
[Round "04"]
[TimeControl "180+1"]
[Date "2021.10.19"]
[WhiteClock "0:00:03"]
[BlackClock "0:00:25"]

1. d4 {[%clk 0:03:00]}  Nf6 {[%clk 0:02:59]} 2. c4 {[%clk 0:03:01]}  Nc6 {[%clk 0:02:58]} 3. Nf3 {[%clk 0:02:57]}  e6 {[%clk 0:02:57]} 4. g3 {[%clk 0:02:57]}  d5 {[%clk 0:02:55]} 5. Bg2 {[%clk 0:02:56]}  g6 {[%clk 0:02:55]} 6. O-O {[%clk 0:02:54]}  Bg7 {[%clk 0:02:55]} 7. Nc3 {[%clk 0:02:51]}  O-O {[%clk 0:02:55]} 8. b3 {[%clk 0:02:41]}  b6 {[%clk 0:02:44]} 9. Bb2 {[%clk 0:02:32]}  Ne7 {[%clk 0:02:42]} 10. Rc1 {[%clk 0:02:30]}  Bb7 {[%clk 0:02:42]} 11. e3 {[%clk 0:02:29]}  dxc4 {[%clk 0:02:36]} 12. bxc4 {[%clk 0:02:28]}  Rc8 {[%clk 0:02:36]} 13. Qe2 {[%clk 0:02:26]}  c5 {[%clk 0:02:36]} 14. Rfd1 {[%clk 0:02:12]}  Qc7 {[%clk 0:02:36]} 15. Nb5 {[%clk 0:01:49]}  Qb8 {[%clk 0:02:34]} 16. d5 {[%clk 0:01:49]}  exd5 {[%clk 0:02:31]} 17. Be5 {[%clk 0:01:48]}  Qa8 {[%clk 0:02:29]} 18. Nc7 {[%clk 0:01:38]}  Rxc7 {[%clk 0:02:24]} 19. Bxc7 {[%clk 0:01:39]}  dxc4 {[%clk 0:02:23]} 20. Rxc4 {[%clk 0:01:21]}  Ba6 {[%clk 0:02:17]} 21. Ne5 {[%clk 0:01:20]}  Qc8 {[%clk 0:02:15]} 22. Bd6 {[%clk 0:01:18]}  Qe6 {[%clk 0:02:15]} 23. Qc2 {[%clk 0:01:02]}  Bxc4 {[%clk 0:02:00]} 24. Qxc4 {[%clk 0:01:02]}  Rd8 {[%clk 0:01:58]} 25. Qxe6 {[%clk 0:00:51]}  fxe6 {[%clk 0:01:58]} 26. Bf3 {[%clk 0:00:46]}  Nf5 {[%clk 0:01:53]} 27. Bc7 {[%clk 0:00:46]}  Rxd1+ {[%clk 0:01:46]} 28. Bxd1 {[%clk 0:00:47]}  Nd5 {[%clk 0:01:45]} 29. Bb8 {[%clk 0:00:45]}  Nb4 {[%clk 0:01:38]} 30. Bb3 {[%clk 0:00:44]}  Bxe5 {[%clk 0:01:32]} 31. Bxe6+ {[%clk 0:00:42]}  Kf8 {[%clk 0:01:31]} 32. Bxe5 {[%clk 0:00:43]}  Ke7 {[%clk 0:01:24]} 33. Bc4 {[%clk 0:00:43]}  Nd6 {[%clk 0:01:23]} 34. Be2 {[%clk 0:00:35]}  Nxa2 {[%clk 0:01:19]} 35. Kf1 {[%clk 0:00:30]}  a5 {[%clk 0:01:00]} 36. Ke1 {[%clk 0:00:29]}  a4 {[%clk 0:01:01]} 37. Kd2 {[%clk 0:00:15]}  Ne4+ {[%clk 0:00:57]} 38. Kc2 {[%clk 0:00:15]}  Nxf2 {[%clk 0:00:53]} 39. Kb2 {[%clk 0:00:10]}  Nb4 {[%clk 0:00:35]} 40. Kc3 {[%clk 0:00:11]}  Nd5+ {[%clk 0:00:31]} 41. Kc4 {[%clk 0:00:07]}  Nxe3+ {[%clk 0:00:31]} 42. Kb5 {[%clk 0:00:08]}  a3 {[%clk 0:00:30]} 43. Kxb6 {[%clk 0:00:06]}  c4 {[%clk 0:00:29]} 44. Bd4 {[%clk 0:00:05]}  a2 {[%clk 0:00:25]} 45. Kc5 {[%clk 0:00:03]}  c3 {[%clk 0:00:24]} 46. Bxc3 {[%clk 0:00:02]}  Ne4+ {[%clk 0:00:24]} 47. Kd4 {[%clk 0:00:02]}  Nxc3 {[%clk 0:00:25]} 48. Kxe3 {[%clk 0:00:03]}  a1=Q {[%clk 0:00:25]} 0-1


[Site "https://www.chess.com"]

[Event "Titled Tuesday Blitz October 19 2021"]
[White "Sanal, Vahap"]
[Black "Goltsev, Dmitry"]
[WhiteFideId "6300545"]
[BlackFideId "24176710"]
[WhiteElo "2492"]
[BlackElo "2334"]
[Result "0-1"]
[Round "04"]
[TimeControl "180+1"]
[Date "2021.10.19"]
[WhiteClock "0:00:12"]
[BlackClock "0:01:17"]

1. e4 {[%clk 0:03:00]}  e6 {[%clk 0:02:58]} 2. d3 {[%clk 0:02:58]}  d5 {[%clk 0:02:58]} 3. Nd2 {[%clk 0:02:59]}  Nf6 {[%clk 0:02:58]} 4. g3 {[%clk 0:02:59]}  dxe4 {[%clk 0:02:58]} 5. dxe4 {[%clk 0:02:59]}  Bc5 {[%clk 0:02:57]} 6. Bg2 {[%clk 0:02:54]}  h5 {[%clk 0:02:47]} 7. h3 {[%clk 0:02:48]}  Nc6 {[%clk 0:02:41]} 8. Ngf3 {[%clk 0:02:46]}  e5 {[%clk 0:02:39]} 9. c3 {[%clk 0:02:45]}  Qd3 {[%clk 0:02:36]} 10. Qe2 {[%clk 0:02:42]}  Qxe2+ {[%clk 0:02:33]} 11. Kxe2 {[%clk 0:02:42]}  b6 {[%clk 0:02:33]} 12. Rd1 {[%clk 0:02:38]}  Ba6+ {[%clk 0:02:33]} 13. Ke1 {[%clk 0:02:38]}  O-O-O {[%clk 0:02:33]} 14. Ng5 {[%clk 0:02:34]}  Rd7 {[%clk 0:02:30]} 15. b3 {[%clk 0:02:13]}  Rhd8 {[%clk 0:02:25]} 16. Bf3 {[%clk 0:02:10]}  Bd3 {[%clk 0:02:11]} 17. Bb2 {[%clk 0:02:03]}  Bc2 {[%clk 0:02:10]} 18. Ke2 {[%clk 0:01:04]}  Bxd1+ {[%clk 0:02:06]} 19. Rxd1 {[%clk 0:01:04]}  Bxf2 {[%clk 0:02:06]} 20. Bc1 {[%clk 0:00:47]}  Bxg3 {[%clk 0:02:05]} 21. Rf1 {[%clk 0:00:28]}  Rxd2+ {[%clk 0:01:40]} 22. Bxd2 {[%clk 0:00:28]}  Rxd2+ {[%clk 0:01:41]} 23. Kxd2 {[%clk 0:00:29]}  Bf4+ {[%clk 0:01:42]} 24. Kd3 {[%clk 0:00:30]}  Bxg5 {[%clk 0:01:42]} 25. Rg1 {[%clk 0:00:30]}  Bh6 {[%clk 0:01:41]} 26. b4 {[%clk 0:00:31]}  Nd8 {[%clk 0:01:41]} 27. Be2 {[%clk 0:00:30]}  Ne6 {[%clk 0:01:41]} 28. Kc2 {[%clk 0:00:30]}  Nxe4 {[%clk 0:01:37]} 29. Bxh5 {[%clk 0:00:30]}  Nd6 {[%clk 0:01:34]} 30. a4 {[%clk 0:00:28]}  Nf4 {[%clk 0:01:32]} 31. Bd1 {[%clk 0:00:21]}  f5 {[%clk 0:01:30]} 32. a5 {[%clk 0:00:21]}  Nxh3 {[%clk 0:01:27]} 33. Rf1 {[%clk 0:00:19]}  Nc4 {[%clk 0:01:17]} 34. Kb3 {[%clk 0:00:12]}  Nd2+ {[%clk 0:01:17]} 0-1


[Site "https://www.chess.com"]

[Event "Titled Tuesday Blitz October 19 2021"]
[White "Yilmaz, Mustafa"]
[Black "Shtembuliak, Evgeny"]
[WhiteFideId "6302718"]
[BlackFideId "14113325"]
[WhiteElo "2518"]
[BlackElo "2504"]
[Result "0-1"]
[Round "04"]
[TimeControl "180+1"]
[Date "2021.10.19"]
[WhiteClock "0:00:11"]
[BlackClock "0:00:17"]

1. Nf3 {[%clk 0:03:00]}  c5 {[%clk 0:02:57]} 2. g3 {[%clk 0:03:01]}  Nc6 {[%clk 0:02:57]} 3. c4 {[%clk 0:02:59]}  g6 {[%clk 0:02:56]} 4. Bg2 {[%clk 0:02:59]}  Bg7 {[%clk 0:02:57]} 5. O-O {[%clk 0:03:00]}  e6 {[%clk 0:02:56]} 6. Nc3 {[%clk 0:02:58]}  Nge7 {[%clk 0:02:56]} 7. a3 {[%clk 0:02:51]}  a5 {[%clk 0:02:54]} 8. e3 {[%clk 0:02:41]}  O-O {[%clk 0:02:46]} 9. d4 {[%clk 0:02:38]}  cxd4 {[%clk 0:02:47]} 10. exd4 {[%clk 0:02:38]}  d5 {[%clk 0:02:47]} 11. cxd5 {[%clk 0:02:38]}  Nxd5 {[%clk 0:02:44]} 12. Bg5 {[%clk 0:02:37]}  Qb6 {[%clk 0:02:20]} 13. Na4 {[%clk 0:02:36]}  Qa7 {[%clk 0:02:17]} 14. Rc1 {[%clk 0:01:17]}  Nxd4 {[%clk 0:02:10]} 15. Nxd4 {[%clk 0:01:18]}  Bxd4 {[%clk 0:01:54]} 16. Qd2 {[%clk 0:01:14]}  Bd7 {[%clk 0:01:51]} 17. Nc3 {[%clk 0:01:04]}  Bc6 {[%clk 0:01:46]} 18. Nxd5 {[%clk 0:00:44]}  exd5 {[%clk 0:01:29]} 19. h4 {[%clk 0:00:42]}  Qb6 {[%clk 0:01:22]} 20. b4 {[%clk 0:00:39]}  axb4 {[%clk 0:01:20]} 21. axb4 {[%clk 0:00:40]}  Rfe8 {[%clk 0:01:09]} 22. h5 {[%clk 0:00:39]}  Ra3 {[%clk 0:01:06]} 23. Qf4 {[%clk 0:00:27]}  Be5 {[%clk 0:00:59]} 24. Qh4 {[%clk 0:00:14]}  Bxg3 {[%clk 0:00:47]} 25. Qg4 {[%clk 0:00:14]}  f5 {[%clk 0:00:46]} 26. Qd1 {[%clk 0:00:14]}  Be5 {[%clk 0:00:24]} 27. Re1 {[%clk 0:00:09]}  Qb5 {[%clk 0:00:18]} 28. Rc5 {[%clk 0:00:08]}  Qd3 {[%clk 0:00:16]} 29. b5 {[%clk 0:00:03]}  Bxb5 {[%clk 0:00:12]} 30. Rxd5 {[%clk 0:00:01]}  Qxd1 {[%clk 0:00:11]} 31. Rexd1 {[%clk 0:00:02]}  Bc6 {[%clk 0:00:11]} 32. Rxe5 {[%clk 0:00:02]}  Rxe5 {[%clk 0:00:10]} 33. Rd8+ {[%clk 0:00:03]}  Kf7 {[%clk 0:00:11]} 34. Rh8 {[%clk 0:00:03]}  Ra1+ {[%clk 0:00:11]} 35. Kh2 {[%clk 0:00:03]}  Bxg2 {[%clk 0:00:12]} 36. Kxg2 {[%clk 0:00:04]}  gxh5 {[%clk 0:00:11]} 37. Bf4 {[%clk 0:00:05]}  Re4 {[%clk 0:00:12]} 38. Rxh7+ {[%clk 0:00:05]}  Kg6 {[%clk 0:00:12]} 39. Rh6+ {[%clk 0:00:05]}  Kg7 {[%clk 0:00:12]} 40. Bd2 {[%clk 0:00:06]}  Ra2 {[%clk 0:00:12]} 41. Rd6 {[%clk 0:00:06]}  Re2 {[%clk 0:00:12]} 42. Bc3+ {[%clk 0:00:06]}  Kf7 {[%clk 0:00:12]} 43. Rf6+ {[%clk 0:00:07]}  Ke7 {[%clk 0:00:11]} 44. Rxf5 {[%clk 0:00:08]}  Rac2 {[%clk 0:00:11]} 45. Bd4 {[%clk 0:00:08]}  Kd7 {[%clk 0:00:12]} 46. Rxh5 {[%clk 0:00:08]}  Kc6 {[%clk 0:00:12]} 47. Rh6+ {[%clk 0:00:08]}  Kd5 {[%clk 0:00:13]} 48. Ba7 {[%clk 0:00:08]}  b5 {[%clk 0:00:13]} 49. Rh5+ {[%clk 0:00:06]}  Kc4 {[%clk 0:00:13]} 50. Rh4+ {[%clk 0:00:07]}  Kb3 {[%clk 0:00:13]} 51. Kg3 {[%clk 0:00:07]}  b4 {[%clk 0:00:14]} 52. f4 {[%clk 0:00:07]}  Rc3+ {[%clk 0:00:14]} 53. Kg4 {[%clk 0:00:07]}  Rg2+ {[%clk 0:00:14]} 54. Kf5 {[%clk 0:00:07]}  Kc2 {[%clk 0:00:15]} 55. Bd4 {[%clk 0:00:07]}  Rc4 {[%clk 0:00:15]} 56. Be5 {[%clk 0:00:07]}  Re2 {[%clk 0:00:15]} 57. Rh8 {[%clk 0:00:07]}  b3 {[%clk 0:00:15]} 58. Rb8 {[%clk 0:00:07]}  Rd2 {[%clk 0:00:13]} 59. Kf6 {[%clk 0:00:08]}  Rd1 {[%clk 0:00:14]} 60. f5 {[%clk 0:00:08]}  Rf1 {[%clk 0:00:14]} 61. Ke6 {[%clk 0:00:08]}  Rc6+ {[%clk 0:00:15]} 62. Kd5 {[%clk 0:00:08]}  Ra6 {[%clk 0:00:15]} 63. Rc8+ {[%clk 0:00:08]}  Kb1 {[%clk 0:00:14]} 64. Rb8 {[%clk 0:00:08]}  Ka2 {[%clk 0:00:14]} 65. f6 {[%clk 0:00:08]}  Rfxf6 {[%clk 0:00:14]} 66. Bxf6 {[%clk 0:00:08]}  Rxf6 {[%clk 0:00:15]} 67. Kc4 {[%clk 0:00:09]}  Rc6+ {[%clk 0:00:15]} 68. Kd3 {[%clk 0:00:08]}  b2 {[%clk 0:00:15]} 69. Ra8+ {[%clk 0:00:09]}  Kb1 {[%clk 0:00:15]} 70. Kd2 {[%clk 0:00:09]}  Rc5 {[%clk 0:00:16]} 71. Ra7 {[%clk 0:00:09]}  Rd5+ {[%clk 0:00:16]} 72. Ke2 {[%clk 0:00:09]}  Kc2 {[%clk 0:00:16]} 73. Rc7+ {[%clk 0:00:09]}  Kb3 {[%clk 0:00:16]} 74. Rb7+ {[%clk 0:00:09]}  Kc3 {[%clk 0:00:16]} 75. Rb8 {[%clk 0:00:10]}  Rd4 {[%clk 0:00:16]} 76. Rc8+ {[%clk 0:00:10]}  Rc4 {[%clk 0:00:16]} 77. Rb8 {[%clk 0:00:11]}  Rb4 {[%clk 0:00:17]} 0-1


[Site "https://www.chess.com"]

[Event "Titled Tuesday Blitz October 19 2021"]
[White "Zhigalko, Sergei"]
[Black "Solon, Nathan"]
[WhiteFideId "13502956"]
[BlackFideId "2017229"]
[WhiteElo "2662"]
[BlackElo "2681"]
[Result "1-0"]
[Round "04"]
[TimeControl "180+1"]
[Date "2021.10.19"]
[WhiteClock "0:00:22"]
[BlackClock "0:00:02"]

1. e4 {[%clk 0:03:00]}  c5 {[%clk 0:02:59]} 2. Nf3 {[%clk 0:03:00]}  d6 {[%clk 0:03:00]} 3. d4 {[%clk 0:03:00]}  cxd4 {[%clk 0:03:01]} 4. Qxd4 {[%clk 0:03:01]}  Nc6 {[%clk 0:03:00]} 5. Bb5 {[%clk 0:03:01]}  Bd7 {[%clk 0:03:01]} 6. Bxc6 {[%clk 0:03:02]}  Bxc6 {[%clk 0:03:01]} 7. Nc3 {[%clk 0:03:02]}  Nf6 {[%clk 0:03:02]} 8. Bg5 {[%clk 0:03:02]}  e6 {[%clk 0:03:02]} 9. O-O-O {[%clk 0:03:01]}  Be7 {[%clk 0:03:02]} 10. Rhe1 {[%clk 0:03:01]}  O-O {[%clk 0:03:01]} 11. Kb1 {[%clk 0:03:01]}  Qa5 {[%clk 0:02:51]} 12. Qd2 {[%clk 0:03:01]}  Qb6 {[%clk 0:02:32]} 13. Nd4 {[%clk 0:03:01]}  Rac8 {[%clk 0:02:28]} 14. f3 {[%clk 0:03:02]}  h6 {[%clk 0:02:15]} 15. Be3 {[%clk 0:02:58]}  Qa6 {[%clk 0:01:54]} 16. g4 {[%clk 0:02:55]}  b5 {[%clk 0:01:45]} 17. g5 {[%clk 0:02:52]}  hxg5 {[%clk 0:01:45]} 18. Bxg5 {[%clk 0:02:53]}  b4 {[%clk 0:01:43]} 19. Nce2 {[%clk 0:02:38]}  Qc4 {[%clk 0:01:01]} 20. Rg1 {[%clk 0:02:35]}  Rfe8 {[%clk 0:00:50]} 21. b3 {[%clk 0:02:07]}  Qc5 {[%clk 0:00:50]} 22. Bh6 {[%clk 0:02:07]}  g6 {[%clk 0:00:48]} 23. Nxe6 {[%clk 0:02:07]}  Qh5 {[%clk 0:00:32]} 24. Ng7 {[%clk 0:01:17]}  Qxf3 {[%clk 0:00:29]} 25. Nd4 {[%clk 0:01:17]}  Qxe4 {[%clk 0:00:25]} 26. Nxe8 {[%clk 0:01:07]}  Bxe8 {[%clk 0:00:18]} 27. Rde1 {[%clk 0:00:50]}  Qb7 {[%clk 0:00:18]} 28. Nf5 {[%clk 0:00:50]}  Bf8 {[%clk 0:00:15]} 29. Bxf8 {[%clk 0:00:45]}  Ne4 {[%clk 0:00:11]} 30. Rxe4 {[%clk 0:00:24]}  Qxe4 {[%clk 0:00:11]} 31. Ne7+ {[%clk 0:00:24]}  Kxf8 {[%clk 0:00:10]} 32. Nxc8 {[%clk 0:00:25]}  d5 {[%clk 0:00:06]} 33. Re1 {[%clk 0:00:23]}  Qf5 {[%clk 0:00:02]} 34. Rxe8+ {[%clk 0:00:22]} 1-0


[Site "https://www.chess.com"]